Cogmind - Beta 13 @@@ ROGUE MODE // 2024.04.24 @ 23:50:06 Player: oranges Result: Destroyed self with EMP Blaster Performance ------------- Evolutions (1) 500 Regions Visited (6) 1200 Robots Destroyed (80) 400 Value Destroyed (2038) 2038 Prototype IDs (27) 540 Alien Tech Used (0) 0 Bonus (338) 338 TOTAL SCORE: 5016 Bonus ------- High Alert Combat Kills 38 Aligned with FarCom 300 Cogmind --------- Core Integrity 0/400 Matter 120/300 Energy 35/100 System Corruption 4% Temperature Cool (68) Movement Core (1450) Ox28 Location -8/Mines Parts ------- > --- POWER (1) -------- (None) > --- PROPULSION (2) --- Potential Leg > --- UTILITY (4) ------ Huge Storage Unit System Shield System Shield > --- WEAPON (2) ------- EMP Blaster Flail > --- INVENTORY (25) --- Fission Core Light Fission Core Light Treads Light Treads Light Treads Compact Wheel ECM Suite Hacking Suite System Shield Advanced Beam Cannon Heavy Assault Rifle Heavy Assault Rifle Peak State ------------ > --- POWER ------------ Improved Ion Engine > --- PROPULSION ------- Potential Leg Armored Wheel > --- UTILITY ---------- Huge Storage Unit Hardened Light Armor Plating System Shield System Shield > --- WEAPON ----------- Heavy Assault Rifle Rocket Launcher > --- INVENTORY -------- Fission Core Light Fission Core Light Treads Light Treads Light Treads Compact Wheel ECM Suite Hacking Suite System Shield Advanced Beam Cannon Heavy Assault Rifle EMP Blaster Grenade Launcher Flail [Rating: 30] Favorites ----------- Power Ion Engine Engine Ion Engine Power Core Nuclear Core Propulsion Light Treads Treads Light Treads Leg Potential Leg Wheel Compact Wheel Utility System Shield Device Structural Scanner Storage Large Storage Unit Processor Advanced Visual Processing Unit Hackware System Shield Protection Medium Armor Plating Weapon Light Cannon Energy Gun Beam Rifle Energy Cannon Advanced Beam Cannon Ballistic Gun Assault Rifle Ballistic Cannon Light Cannon Launcher Grenade Launcher Impact Weapon Flail Build | -11 -10 -10 -9 -9 -9 -8 ------- Run | Yrd Mat Min Mat Min Exi Min Slots Evolved 2 | . . . 2 . . . Power . | . . . . . . . Propulsion . | . . . . . . . Utility 2 | . . . 2 . . . Weapon . | . . . . . . . Parts Attached 93 | 3 20 5 49 5 3 8 Power 6 | . . . 5 1 . . Engine 2 | . . . 1 1 . . Core 4 | . . . 4 . . . Reactor . | . . . . . . . Propulsion 12 | 3 3 . 5 . 1 . Treads 6 | 2 1 . 3 . . . Leg 2 | 1 . . . . 1 . Wheel 4 | . 2 . 2 . . . Hover . | . . . . . . . Flight . | . . . . . . . Utility 22 | . 5 3 12 . 1 1 Device 8 | . 2 3 3 . . . Storage 3 | . 1 . . . 1 1 Processor 1 | . . . 1 . . . Hackware 2 | . . . 2 . . . Protection 8 | . 2 . 6 . . . Artifact . | . . . . . . . Weapon 53 | . 12 2 27 4 1 7 Energy Gun 8 | . 2 . 6 . . . Energy Cannon 5 | . . . 5 . . . Ballistic Gun 13 | . 6 . 4 2 . 1 Ballistic Cannon 7 | . 2 . 5 . . . Launcher 12 | . . 2 4 1 . 5 Special Weapon . | . . . . . . . Impact Weapon 8 | . 2 . 3 1 1 1 Slashing Weapon . | . . . . . . . Piercing Weapon . | . . . . . . . Special Melee Weapon . | . . . . . . . Unidentified Prototypes 4 | . . 1 3 . . . Parts Lost 16 | . 2 . 8 1 . 5 Power 4 | . . . 2 1 . 1 Propulsion 2 | . . . 1 . . 1 Utility 6 | . 1 . 4 . . 1 Weapon 4 | . 1 . 1 . . 2 Highest Loss Streak 5 | . 1 . 3 1 . 5 To Critical Strikes . | . . . . . . . Average Slot Usage (%) 94 | . 92 100 99 99 88 88 Engine 8 | . 14 14 . 5 11 10 Core 3 | . . . 9 5 . . Treads 10 | . 16 . 9 11 4 . Leg 1 | . . . . . 6 11 Wheel 12 | . 11 28 12 11 11 10 Device 2 | . 1 14 2 . . . Storage 12 | . 14 14 11 11 11 11 Hackware 12 | . . . 18 22 22 22 Protection 8 | . 5 . 10 11 11 10 Energy Gun 1 | . . . 2 . . . Energy Cannon 1 | . . . 3 . . . Ballistic Gun 8 | . 11 . 9 17 1 1 Ballistic Cannon 5 | . 13 . 3 . . . Launcher 1 | . . 14 . 4 . 1 Impact Weapon 4 | . 2 14 1 . 9 9 Naked Turns . | . . . . . . . Heaviest Build 100 | 14 38 32 42 38 38 100 Greatest Support 40 | 40 40 32 32 20 30 30 Greatest Overweight (x) 8 | . 1 . 3 1 1 8 Average Overweight (x) 1 | . . . 2 1 1 5 Largest Inventory Capacity 25 | 8 15 15 15 15 15 25 Average Capacity 13 | 8 9 15 15 15 15 23 Most Carried 15 | 7 15 15 15 14 15 15 Average Carried 12 | 6 9 14 14 13 14 14 Final Capacity 25 | 8 15 15 15 15 15 25 Final Carried 15 | 6 15 15 14 13 15 12 Class Distribution -------------------- 56% | Hacker-Mutant 43% | Mutant Dominant Class ---------------- Mutant | -10/Materials Mutant | -10/Mines Hacker-Mutant | -9/Materials Hacker-Mutant | -9/Mines Hacker-Mutant | -9/Exiles Hacker-Mutant | -8/Mines Resources | -11 -10 -10 -9 -9 -9 -8 ----------- Run | Yrd Mat Min Mat Min Exi Min Matter Collected 2360 | 230 652 162 1033 142 . 141 Remotely . | . . . . . . . Salvage Created 2761 | . 755 27 1521 176 . 282 Parts 155 | . 45 . 92 8 . 10 Haulers Intercepted 5 | . 2 . 3 . . . Recyclers Shooed 4 | . 1 . 3 . . . Parts Field Recycled . | . . . . . . . Retrieved Matter . | . . . . . . . Parts Self-Destructed . | . . . . . . . Prevented . | . . . . . . . Kills | -11 -10 -10 -9 -9 -9 -8 ------- Run | Yrd Mat Min Mat Min Exi Min Combat Hostiles Destroyed 54 | . 12 . 31 5 . 6 Guns 27 | . 6 . 17 4 . . Cannons 15 | . 6 . 9 . . . AOE 11 | . . . 5 . . 6 Classes Destroyed 11 | . 6 . 3 1 . 1 Worker 4 | . 1 1 1 . . 1 Builder 7 | . 6 . 1 . . . Tunneler 1 | . . . . . . 1 Hauler 5 | . 2 . 3 . . . Recycler 1 | . . . 1 . . . Operator 3 | . 1 . 2 . . . Watcher 5 | . 3 . 2 . . . Swarmer 9 | . . . 4 2 . 3 Grunt 35 | . 12 . 18 2 . 3 Brawler 1 | . . . . 1 . . Sentry 9 | . . . 9 . . . Best Kill Streak 6 | . 5 1 6 3 . 5 Combat Bots Only 6 | . 4 . 6 3 . 3 Max Kills in Single Turn 3 | . 1 1 2 1 . 3 Gunslinging 1 | . . . 1 . . . Exploded 3 | . . . 2 . . 3 Melee . | . . . . . . . Uniques/NPCs Destroyed . | . . . . . . . Combat | -11 -10 -10 -9 -9 -9 -8 -------- Run | Yrd Mat Min Mat Min Exi Min Hostile Shots Fired 264 | . 59 . 127 38 . 40 Missed 63 | . 17 . 31 8 . 7 Damage Taken 3089 | . 558 . 1400 311 . 820 Core 538 | . 121 . 140 79 . 198 Absorbed by Shields . | . . . . . . . Redirected to Shielding 3 | . 3 . . . . . Core Remaining (%) 75 | 100 . 51 . . . . Volleys Fired 228 | . 65 . 124 19 . 20 Largest 2 | . 2 . 2 2 . 2 Hottest 112 | . 75 . 112 46 . 66 Shots Fired 406 | . 128 . 220 37 . 21 Gun 272 | . 82 . 145 37 . 8 Cannon 103 | . 46 . 57 . . . Launcher 31 | . . . 18 . . 13 Special . | . . . . . . . Kinetic 291 | . 112 . 134 37 . 8 Thermal 46 | . . . 46 . . . Explosive 15 | . . . 4 . . 11 Electromagnetic 54 | . 16 . 36 . . 2 Robot Hit Streak 16 | . 12 . 16 7 . 6 Robot Miss Streak 5 | . 2 . 3 5 . 1 Penetration Max . | . . . . . . . Secondary Targets 3 | . . . 3 . . . Max Gunslinging Chain 1 | . . . 1 . . . Shots Hit Robots 264 | . 86 1 143 24 . 10 Core Hits 125 | . 33 . 68 7 . 17 Critical Kills . | . . . . . . . Critical Parts Destroyed 3 | . 2 . . 1 . . Critical Strikes 9 | . 6 . 2 1 . . Burn 2 | . . . 2 . . . Destroy 1 | . 1 . . . . . Blast 3 | . 3 . . . . . Corrupt 1 | . 1 . . . . . Smash 2 | . 1 . . 1 . . Melee Attacks 25 | . 13 2 3 5 . 2 Impact 25 | . 13 2 3 5 . 2 Slashing . | . . . . . . . Piercing . | . . . . . . . Sneak Attacks 5 | . 4 1 . . . . Combat Hostiles . | . . . . . . . Follow-up Attacks . | . . . . . . . Damage Inflicted 6068 | . 1574 45 2979 387 . 1083 Guns 2751 | . 765 . 1522 357 . 107 Cannons 1107 | . 356 . 751 . . . Explosions 1498 | . 48 . 635 . . 815 Melee 610 | . 374 45 . 30 . 161 Ramming 102 | . 31 . 71 . . . Kinetic 2835 | . 972 . 1399 357 . 107 Thermal 719 | . 48 . 623 . . 48 Explosive 862 | . . . 188 . . 674 Electromagnetic 940 | . 149 . 698 . . 93 Impact 610 | . 374 45 . 30 . 161 Slashing . | . . . . . . . Piercing . | . . . . . . . Highest Corruption 4 | . . . 4 4 4 4 Average Corruption 3 | . . . 2 4 4 4 Corruption Purged . | . . . . . . . Corruption Blocked . | . . . . . . . Effects 55 | . . . 26 3 17 9 Message Errors 12 | . . . 3 1 5 3 Matter Fused 14 | . . . 7 . 5 2 Heat Flow Errors 5 | . . . 3 1 1 . Energy Discharges 7 | . . . 3 . 3 1 Data Loss (minor) 6 | . . . 1 . 3 2 Data Loss (major) 1 | . . . 1 . . . Misfires 4 | . . . 4 . . . Alerts 2 | . . . 1 . . 1 Weapon Failures 4 | . . . 3 1 . . Overload Shots . | . . . . . . . Overflow Damage 344 | . 216 20 4 30 . 74 Projectiles . | . . . . . . . Explosions 17 | . . . 4 . . 13 Melee 327 | . 216 20 . 30 . 61 Knockbacks 8 | . 3 . 4 . . 1 Impact 2 | . 1 . . . . 1 Kinetic 5 | . 1 . 4 . . . Secondary 1 | . 1 . . . . . Self-Inflicted Damage 347 | . 32 . 143 . . 172 Shots 12 | . 1 . 6 . . 5 Rammed 20 | . 8 . 12 . . . Targets Rammed 20 | . 8 . 12 . . . Kicked . | . . . . . . . Crushed . | . . . . . . . Highest Temperature 349 | . 126 . 349 134 135 61 Average Temperature 53 | . 38 . 62 21 68 31 Received Heat Transfer 1215 | . 288 . 579 96 . 252 Effects 2 | . . . 2 . . . Energy Bleed 1 | . . . 1 . . . Interference 1 | . . . 1 . . . Siege Activations . | . . . . . . . Robots Corrupted . | . . . . . . . Combat Hostiles . | . . . . . . . Parts Fried 12 | . 10 . 2 . . . Impact Corruptions 13 | . 7 1 . 1 . 4 Robots Melted . | . . . . . . . Combat Hostiles . | . . . . . . . Parts Melted . | . . . . . . . Heat Transferred 1508 | . 50 . 1408 . . 50 Parts Sabotaged . | . . . . . . . Parts Stolen . | . . . . . . . Parts Stripped . | . . . . . . . Power Chain Reactions 5 | . 1 . 3 . . 1 Alert | -11 -10 -10 -9 -9 -9 -8 ------- Run | Yrd Mat Min Mat Min Exi Min Peak Influence 478 | . 182 19 478 244 . 95 Initial 124 | . . 7 7 124 . . Average 134 | . 58 8 243 158 . 62 Maximum Alert Level 2 | . . . 2 1 . . Low Security (%) 77 | 100 100 100 43 85 . 100 Level 1 17 | . . . 42 14 . . Level 2 5 | . . . 13 . . . Level 3 . | . . . . . . . Level 4 . | . . . . . . . Level 5 . | . . . . . . . High Security . | . . . . . . . Max Security . | . . . . . . . Squads Dispatched 9 | . 2 . 7 . . . Investigation 5 | . 1 . 4 . . . Extermination . | . . . . . . . Reinforcement 4 | . 1 . 3 . . . Assault . | . . . . . . . Garrison . | . . . . . . . Intercept . | . . . . . . . Searches Triggered . | . . . . . . . Construction Impeded . | . . . . . . . Haulers Reinforced . | . . . . . . . Active Scanning Responses . | . . . . . . . Cargo Convoy Interrupts . | . . . . . . . Stealth | -11 -10 -10 -9 -9 -9 -8 --------- Run | Yrd Mat Min Mat Min Exi Min Distress Signals 10 | . 4 . 6 . . . Communications Jammed . | . . . . . . . Distress Signals . | . . . . . . . Times Spotted 85 | . 22 . 51 6 . 6 Peak Tracking Total 6 | . 5 . 5 3 . 6 Tactical Retreats 5 | . 2 . 3 . . . Traps | -11 -10 -10 -9 -9 -9 -8 ------- Run | Yrd Mat Min Mat Min Exi Min Traps Triggered 5 | . . . 5 . . . Indirectly . | . . . . . . . Trap Hack Attempts . | . . . . . . . Triggered . | . . . . . . . Disarmed . | . . . . . . . Reprogrammed 4 | . . . 4 . . . Reused 2 | . . . 2 . . . Traps Extracted . | . . . . . . . Installed . | . . . . . . . Triggered 2 | . . . 2 . . . Machines | -11 -10 -10 -9 -9 -9 -8 ---------- Run | Yrd Mat Min Mat Min Exi Min Machines Disabled 1 | . . . 1 . . . Max in Single Turn 1 | . . . 1 . . . Machines Repaired . | . . . . . . . Machines Dismantled . | . . . . . . . Machines Sabotaged . | . . . . . . . Overloaded Fab Kills . | . . . . . . . Hacking | -11 -10 -10 -9 -9 -9 -8 --------- Run | Yrd Mat Min Mat Min Exi Min Machines Accessed 20 | . 7 1 9 1 1 1 Terminals 15 | . 6 1 6 1 . 1 Fabricators . | . . . . . . . Repair Stations 2 | . . . 2 . . . Recycling Units 1 | . 1 . . . . . Scanalyzers 1 | . . . 1 . . . Garrison Access . | . . . . . . . Total Hacks 76 | . 15 2 50 4 1 4 Successful 30 | . 5 1 20 2 1 1 Failed 46 | . 10 1 30 2 . 3 Catastrophic 16 | . 3 . 12 . . 1 Database Lockouts . | . . . . . . . Manual 61 | . 12 2 40 2 1 4 Terminals 62 | . 13 2 39 4 . 4 Fabricators . | . . . . . . . Repair Stations 7 | . . . 7 . . . Recycling Units 2 | . 2 . . . . . Scanalyzers 4 | . . . 4 . . . Garrison Access . | . . . . . . . Terminal Hacks 13 | . 1 1 8 2 1 . Robot Analysis 2 | . 1 . 1 . . . Branch Access Points 2 | . . . 1 1 . . Terminal Index 1 | . . . 1 . . . Unreport Threat 2 | . . . 2 . . . Reprogram Traps 2 | . . . 2 . . . Hauler Manifests 1 | . . . 1 . . . Zone Layout 2 | . . 1 . 1 . . Derelict Proto ID Bank 1 | . . . . . 1 . Fabricator Hacks . | . . . . . . . Repair Station Hacks 3 | . . . 3 . . . Scan Component 3 | . . . 3 . . . Recycling Unit Hacks 1 | . 1 . . . . . Report Inventory 1 | . 1 . . . . . Scanalyzer 4 | . . . 4 . . . Insert Component 2 | . . . 2 . . . Analyze 2 | . . . 2 . . . Garrison Access Hacks . | . . . . . . . Unauthorized Hacks 9 | . 3 . 5 . . 1 Terminals 9 | . 3 . 5 . . 1 Track 1 | . . . 1 . . . Botnet 6 | . 2 . 3 . . 1 Disrupt 1 | . . . 1 . . . Operators 1 | . 1 . . . . . Fabricators . | . . . . . . . Repair Stations . | . . . . . . . Recycling Units . | . . . . . . . Scanalyzers . | . . . . . . . Garrison Access . | . . . . . . . Data Cores Recovered . | . . . . . . . Used . | . . . . . . . Hacking Detections 18 | . 7 1 9 . . 1 Full Trace Events 6 | . 2 . 4 . . . Feedback Events . | . . . . . . . Feedback Blocked . | . . . . . . . Robot Schematics Acquired . | . . . . . . . Robots Built . | . . . . . . . Authchips . | . . . . . . . Time . | . . . . . . . Total Robot Build Rating . | . . . . . . . Part Schematics Acquired 2 | . . . 2 . . . Parts Built . | . . . . . . . Authchips . | . . . . . . . Time . | . . . . . . . Total Part Build Rating . | . . . . . . . Parts Repaired . | . . . . . . . Time . | . . . . . . . Parts Recycled . | . . . . . . . Recycled Matter . | . . . . . . . Retrieved Matter . | . . . . . . . Retrieved Components . | . . . . . . . Parts Scanalyzed 2 | . . . 2 . . . Part Schematics Acquired 2 | . . . 2 . . . Parts Damaged . | . . . . . . . Bothacking | -11 -10 -10 -9 -9 -9 -8 ------------ Run | Yrd Mat Min Mat Min Exi Min Used RIF Installer . | . . . . . . . Robots Hacked . | . . . . . . . Non-combat . | . . . . . . . Combat . | . . . . . . . Robot Hacks Applied . | . . . . . . . Relay Couplers Released . | . . . . . . . Fabnet Peak Effective % . | . . . . . . . Robots Rewired . | . . . . . . . Allies Hacked . | . . . . . . . Hacks Repelled . | . . . . . . . Allies | -11 -10 -10 -9 -9 -9 -8 -------- Run | Yrd Mat Min Mat Min Exi Min Total Allies . | . . . . . . . Largest Group . | . . . . . . . Highest-Rated Group . | . . . . . . . Highest-Rated Ally . | . . . . . . . Total Orders . | . . . . . . . Ally Attacks . | . . . . . . . Total Damage . | . . . . . . . Kills . | . . . . . . . Allies Corrupted . | . . . . . . . Allies Melted . | . . . . . . . Intel | -11 -10 -10 -9 -9 -9 -8 ------- Run | Yrd Mat Min Mat Min Exi Min Robot Analysis Total 2 | . 1 . 1 . . . Derelict Logs Recovered . | . . . . . . . Drone Launches . | . . . . . . . Drone Recoveries . | . . . . . . . Exploration | -11 -10 -10 -9 -9 -9 -8 ------------- Run | Yrd Mat Min Mat Min Exi Min Turns Passed 5264 | 8 1828 173 1738 262 828 427 Spaces Moved 2742 | 2 1063 159 866 78 422 152 Core . | . . . . . . . Treads 799 | 2 538 . 33 78 148 . Legs 313 | . . . . . 274 39 Wheels 1630 | . 525 159 833 . . 113 Hover . | . . . . . . . Flight . | . . . . . . . Fastest Speed 100 | 160 100 100 115 240 170 170 Average Speed 147 | 160 134 100 131 240 194 188 Slowest Speed 240 | 160 160 100 240 240 240 210 Overloaded Moves . | . . . . . . . Propulsion Burnouts . | . . . . . . . Robots Hopped . | . . . . . . . Cave-ins Triggered . | . . . . . . . Exploration Rate (%) 46 | 2 93 40 67 15 69 42 Regions Visited 6 Branch Regions 4 Pre-discovered Areas . | . . . . . . . Known Exits Taken 1 | . . . 1 . . . Unknown Exits Taken 5 | 1 1 1 . 1 1 . Scrap Searched 1 | . . 1 . . . . Spaces Dug 10 | . 5 1 2 2 . . Terrain Destroyed 166 | . 10 1 45 2 . 108 Melee 10 | . 5 1 2 2 . . Projectile 4 | . . . 4 . . . AOE 152 | . 5 . 39 . . 108 Terrain Rammed . | . . . . . . . Walls Destroyed . | . . . . . . . Machines Disabled . | . . . . . . . Actions | -11 -10 -10 -9 -9 -9 -8 --------- Run | Yrd Mat Min Mat Min Exi Min Total 3519 | 6 1304 170 1233 106 431 269 Wait 332 | . 107 . 140 . . 85 Move 2736 | 1 1062 158 865 77 421 152 Hop . | . . . . . . . Pick Up 38 | . 17 2 17 . 2 . Fast Attach 18 | 1 3 . 13 . 1 . Attach 17 | . 2 . 9 1 1 4 Detach 5 | 1 1 . . . 2 1 Swap 58 | 2 15 5 27 4 1 4 Drop 42 | 1 11 3 23 . 3 1 Fire 228 | . 65 . 124 19 . 20 Melee 25 | . 13 2 3 5 . 2 Ram 13 | . 1 . 12 . . . Kick . | . . . . . . . Crush 7 | . 7 . . . . . Escape Stasis . | . . . . . . . Rewire . | . . . . . . . Trap . | . . . . . . . Miscellaneous . | . . . . . . . Route ------- -11/Scrapyard -10/Materials (discovered 4 exits: *Mat x2 / *Min x2) -10/Mines -9/Materials (discovered 5 exits: [*Mat x2] / *Min / *Sto x2) -9/Mines (discovered 2 exits: [*Mat] / *Exi) -9/Exiles -8/Mines History --------- Turn | Location | Event 7 | -11/Scrapyard | Discovered new exit (range 1) 9 | -11/Scrapyard | Entered Materials 290 | -10/Materials | Discovered new exit (range 12) 302 | -10/Materials | Build established: Mutant 971 | -10/Materials | Discovered new exit (range 4) 1236 | -10/Materials | Discovered new exit (range 16) 1244 | -10/Materials | Discovered new exit (range 16) 1837 | -10/Materials | Entered Mines 1893 | -10/Mines | Found a damaged Exp. Sensor Array with a note attached 1895 | -10/Mines | Found Prototype Device 1896 | -10/Mines | Identified Exp. Sensor Array 1908 | -10/Mines | Received a Rocket Launcher from a helpful Derelict 1998 | -10/Mines | Discovered new exit (range 14) 2010 | -10/Mines | Entered Materials 2010 | -9/Materials | Evolved 2 slots: Utility x2 2011 | -9/Materials | Discovered new exit (range 16) 2630 | -9/Materials | Build established: Hacker-Mutant 2735 | -9/Materials | Discovered new exit (range 10) 2800 | -9/Materials | Lost 3 parts (1p2u) 3115 | -9/Materials | Identified exit to Mines 3115 | -9/Materials | Identified exit to Storage 3194 | -9/Materials | Discovered new exit (range 16) 3561 | -9/Materials | Discovered new exit (range 10) 3748 | -9/Materials | Entered Mines 3792 | -9/Mines | Met a Derelict bent on vengeance 3810 | -9/Mines | Discovered new exit (range 5) 3887 | -9/Mines | Core integrity fell below 50% 3919 | -9/Mines | Discovered new exit (range 15) 4000 | -9/Mines | Deemed a non-threat by the Exiles lab entrance 4010 | -9/Mines | Entered Exiles 4066 | -9/Exiles | Met 8R-AWN 4202 | -9/Exiles | Met EX-HEX 4265 | -9/Exiles | Met EX-BIN 4298 | -9/Exiles | Aligned with FarCom system 4301 | -9/Exiles | Given EX-Vault access code 4356 | -9/Exiles | Opened EX-Vault 4371 | -9/Exiles | Found Potential Leg 4408 | -9/Exiles | Warned to stay clear of 0b10 Research branches 4455 | -9/Exiles | Met EX-DEC 4566 | -9/Exiles | Discovered new exit (range 14) 4838 | -9/Exiles | Left Exiles lab with Potential Leg 4838 | -9/Exiles | Entered Mines 5259 | -8/Mines | Core integrity fell below 20% 5265 | -8/Mines | Destroyed self with EMP Blaster Last Messages --------------- 05237_ G-47 Trooper unfolds itself. 05242_ System corrupted: Energy discharge (-84). 05243_ T-07 Excavator destroyed. 05247_ G-47 Trooper destroyed. 05254_ Imp. Ion Engine destroyed. 05256_ Rocket Launcher destroyed. 05256_ Hrd. Light Armor Plating destroyed. 05258_ Arm. Wheel destroyed. 05260_ K-01 Serf collects debris. 05260_ K-01 Serf destroyed. 05261_ R-06 Scavenger collects Aluminum Leg. 05262_ Critical hit (Burn: +37). 05263_ U-05 Engineer lays Concrete. 05264_ The unstable cave ceiling collapses. 05264_ Grenade Launcher destroyed. 05265_ U-05 Engineer lays Concrete. 05265_ Destroyed Imp. Aluminum Leg. 05265_ G-47 Trooper destroyed. 05265_ Chain reaction triggered in Corrupted Lgt. Nuclear Core. 05265_ Destroyed Imp. Ion Engine. Map ----- +----------------------------------------------------+ | ???????????????????????? ????# #???? | | ????????????????????????# #????# #???? | | ?????????????????????????#????## ##??? | | ?????????????????? ######## #??? | | ?????????????????? #??? | | ?????????????????? #??? | | ?????????????????? ######### #??? | | ??????????????????????????????# #??? | | ??????????????????????######### ##??? | | ??????????????????????# #???? | | ???????????????# ###### ######### #???? | | ???????????????# #???????# #???? | | ???????????????########u#????#### ###?? | | ?????????????????## # # ##?### #?? | | ????????????????## # ## """" #?? | | ????????????????# % r ## """" #?? | | ????????????????# g # """" #?? | | ??????????????????? = # ## #?? | | ?????????????### ??# ## """" #?? | | ?????????????# ?# # """" #?? | | ?????????????# # # """" #?? | | ?????????????# # #?? | | ?????????????# % #?? | | ?????????????# g % ###T####?? | | ????????#$ l #####????? | | ????????# ##### ??# @ #??????? | | ??????????????# ???# #?????? | | ??????????????# #???## #????? | | ??????????????###????# #???? | | ???????????????????? #???? | | ??????????????????? ##???? | | ?????????????????? ##????? | | ????????????????? #?????? | | ???????????????? ##?????? | | ??????????????? ## ##??????? | | ?????????????? ##?# ##???????? | | ??????????????# #???# ##????????? | | ????????????????#????# #?????????? | | ?????????????????????# #?????????? | | ?????????????????????## ##?????????? | | ???????????????????????####???????????? | | ??????????????????????????????????????? | | ??????????????????????????????????????? | | ??????????????????????????????????????? | | | | | | | | | | | | | +----------------------------------------------------+ Best States ------------- Heat Dissipation 28 Energy Generation 14 Energy Capacity 280 Matter Stores 300 Matter Capacity 300 Sight Range 20 Robot Scan Range 20 Terrain Scan Range 14 Terrain Scan Density 10 ECM Strength 1 Armor Coverage 225 Propulsion Shielding 33 Evasion (%) 40 Recoil Reduction 2 Defensive Hacking 20 Item Schematics ----------------- Hacking Suite | -9/Materials | Scanalyzed System Shield | -9/Materials | Scanalyzed Robot Schematics ------------------ None Fabricated ------------ Nothing Alien Tech Used ----------------- None Achievements -------------- None Challenges ------------ None Game ------ Seed SlugAblativeGun Manual? 0 Play Time 01:04:22 Cumulative 31.5 hours Start 2024.04.24 @ 20:06:09 End 2024.04.24 @ 23:50:06 Sessions 3 Manual Loads 0 Difficulty Rogue Special Mode None Game No. 20 Rogue 20 Adventurer 0 Explorer 0 Win Type - Total 2 Types 2/0/0/0/0/0/0/0/0 Lore% 27 Gallery% 23 Achievement% 29 Wizard Run 0 Options --------- Layout 0 ASCII 0 Keyboard 0 Movement Mouse Keybinds 0 Fullscreen 2 Font 24/Smallcaps Map View 76x50 Zoom Use 0% Tactical HUD 1 Map Filters NONE Filters NONE Steam 0 RUN: 19fd7254-8a34-4197-b3d9-89357d95d2ac